Cogmind - Beta 16 *** ADVENTURER MODE // 2025.11.15 @ 18:52:05 Player: oshi0ne1 Result: Destroyed by B-48 Gladiator with Mace Performance ------------- Evolutions (3) 1500 Regions Visited (5) 1000 Robots Destroyed (62) 310 Value Destroyed (1632) 1632 Prototype IDs (3) 60 Alien Tech Used (0) 0 Bonus (0) 0 TOTAL SCORE: 4502 Bonus ------- None Cogmind --------- Core Integrity 0/700 Matter 113/300 Energy 67/100 System Corruption 2% Temperature Cool (0) Movement Hovering (360) Ox5 Location -7/Factory Parts ------- > --- POWER (3) -------- (None) > --- PROPULSION (2) --- Airjet > --- UTILITY (6) ------ High-capacity Storage Unit Visual Processing Unit Advanced Targeting Computer > --- WEAPON (2) ------- Light Assault Rifle > --- INVENTORY (20) --- Ion Engine Ion Engine Ion Engine Light Ion Engine Light Ion Engine Wheel Cryofiber Web Cooling System Targeting Computer Launcher Guidance Computer Particle Charger Peak State ------------ > --- POWER ------------ Ion Engine Light Nuclear Core > --- PROPULSION ------- Armored Wheel Armored Wheel > --- UTILITY ---------- Cryofiber Web High-capacity Storage Unit Visual Processing Unit Targeting Computer Advanced Targeting Computer > --- WEAPON ----------- Assault Cannon Katana > --- INVENTORY -------- Ion Engine Ion Engine Ion Engine Light Ion Engine Light Ion Engine Wheel Airjet Airjet Cryofiber Web Cooling System Targeting Computer Launcher Guidance Computer Particle Charger Small Laser Field Laser Plasma Cannon Light Assault Rifle Minigun High-powered Shotgun [Rating: 28] Favorites ----------- Power Ion Engine Engine Ion Engine Power Core Light Nuclear Core Propulsion Armored Wheel Leg Carbon-fiber Leg Wheel Armored Wheel Hover Unit Airjet Utility High-capacity Storage Unit Device Cryofiber Web Storage High-capacity Storage Unit Processor Visual Processing Unit Weapon Light Assault Rifle Energy Gun Spread Laser Energy Cannon Plasma Cannon Ballistic Gun Light Assault Rifle Ballistic Cannon Assault Cannon Launcher Grenade Launcher Special Weapon Mining Laser Impact Weapon Flail Slashing Weapon Katana Build | -11 -10 -9 -9 -8 -7 ------- Run | Yrd Mat Mat Min Mat Fac Slots Evolved 6 | . . 2 . 2 2 Power 2 | . . . . 1 1 Propulsion . | . . . . . . Utility 4 | . . 2 . 1 1 Weapon . | . . . . . . Parts Attached 38 | 4 9 3 2 10 10 Power 7 | 1 . 1 1 3 1 Engine 4 | 1 . 1 . 2 . Core 3 | . . . 1 1 1 Reactor . | . . . . . . Propulsion 10 | 2 2 . . 2 4 Treads . | . . . . . . Leg 2 | . . . . . 2 Wheel 6 | 2 2 . . 2 . Hover 2 | . . . . . 2 Flight . | . . . . . . Utility 7 | 1 3 1 . 1 1 Device 1 | . . . . . 1 Storage 3 | 1 2 . . . . Processor 3 | . 1 1 . 1 . Hackware . | . . . . . . Protection . | . . . . . . Artifact . | . . . . . . Weapon 14 | . 4 1 1 4 4 Energy Gun 3 | . . 1 1 1 . Energy Cannon 1 | . . . . . 1 Ballistic Gun 5 | . 2 . . 1 2 Ballistic Cannon 1 | . . . . 1 . Launcher 1 | . 1 . . . . Special Weapon 1 | . 1 . . . . Impact Weapon 1 | . . . . 1 . Slashing Weapon 1 | . . . . . 1 Piercing Weapon . | . . . . . . Special Melee Weapon . | . . . . . . Unidentified Prototypes 1 | . . 1 . . . Parts Lost 28 | . 2 4 4 2 16 Power 7 | . . 1 1 2 3 Propulsion 8 | . . 1 2 . 5 Utility 2 | . . . . . 2 Weapon 11 | . 2 2 1 . 6 Highest Loss Streak 12 | . 1 4 3 1 12 To Critical Strikes . | . . . . . . Average Backups 10 | . 4 8 9 15 17 Power 3 | . 1 3 5 6 5 Propulsion 2 | . 3 3 2 1 2 Utility 1 | . . 1 1 3 5 Weapon 1 | . . . . 3 4 Tool/Special . | . . . . . . Unused Backups 9 | . . . . . 9 Power 4 | . . . . . 4 Propulsion . | . . . . . . Utility 4 | . . . . . 4 Weapon 1 | . . . . . 1 Tool/Special . | . . . . . . Average Slot Usage (%) 77 | . 80 82 74 82 67 Engine 9 | . 14 8 9 5 3 Core 3 | . . . 1 11 4 Wheel 19 | . 26 22 19 17 7 Storage 10 | . 14 11 11 9 7 Processor 15 | . 1 22 22 21 23 Energy Gun 4 | . . 3 11 7 . Ballistic Gun 6 | . 14 8 . 3 1 Ballistic Cannon 1 | . . . . 3 3 Launcher 2 | . 7 7 . . . Peak Build Rating 28 | 4 11 13 13 26 28 Average Rating 13 | 3 7 11 12 20 22 On Entrance 10 | . 4 11 13 10 23 Avg Prop Armor Cover (%) . | . . . . . . Naked Turns . | . . . . . . Heaviest Build 61 | 10 49 51 51 61 60 Greatest Support 30 | 26 26 28 28 24 30 Greatest Overweight (x) 17 | . 2 2 4 2 17 Average Overweight (x) 1 | . 1 1 1 2 2 Largest Inventory Capacity 20 | 8 20 20 20 20 20 Average Capacity 18 | 7 16 20 20 20 20 Most Carried 20 | 3 9 10 13 19 20 Average Carried 10 | 1 4 8 9 15 17 Final Capacity 20 | 8 20 20 20 20 20 Final Carried 18 | 1 9 8 13 18 11 Class Distribution -------------------- 94% | Mutant 5% | Scavenger-Mutant Dominant Class ---------------- Mutant | -10/Materials Mutant | -9/Materials Mutant | -9/Mines Mutant | -8/Materials Mutant | -7/Factory Resources | -11 -10 -9 -9 -8 -7 ----------- Run | Yrd Mat Mat Min Mat Fac Matter Collected 924 | 192 227 100 95 132 178 Remotely . | . . . . . . Salvage Created 1478 | . 385 398 310 210 175 Parts 112 | . 31 31 25 16 9 Haulers Intercepted 1 | . . 1 . . . Recyclers Shooed 2 | . . 1 . 1 . Parts Field Recycled . | . . . . . . Retrieved Matter . | . . . . . . Parts Self-Destructed . | . . . . . . Prevented . | . . . . . . Parts Restored . | . . . . . . Kills | -11 -10 -9 -9 -8 -7 ------- Run | Yrd Mat Mat Min Mat Fac Combat Hostiles Destroyed 55 | . 16 13 13 9 4 Melee 1 | . . . . . 1 Guns 40 | . 13 10 13 3 1 Cannons 8 | . . . . 6 2 AOE 6 | . 3 3 . . . Classes Destroyed 11 | . 3 5 . 2 1 Worker 1 | . . 1 . . . Builder 2 | . . 2 . . . Tunneler 1 | . . 1 . . . Hauler 1 | . . 1 . . . Operator 1 | . . . . 1 . Watcher 1 | . 1 . . . . Swarmer 22 | . 8 7 4 3 . Grunt 26 | . 8 3 9 4 2 Duelist 1 | . . . . . 1 Sentry 5 | . . 3 . 1 1 Hunter 1 | . . . . 1 . Best Kill Streak 10 | . 6 10 4 5 2 Combat Bots Only 9 | . 6 9 4 5 2 Max Kills in Single Turn 2 | . 2 2 1 1 1 Gunslinging . | . . . . . . Exploded 2 | . 2 1 . . . Melee 1 | . . . . . 1 Uniques/NPCs Destroyed . | . . . . . . Combat | -11 -10 -9 -9 -8 -7 -------- Run | Yrd Mat Mat Min Mat Fac Hostile Shots Fired 658 | . 92 91 72 88 315 Missed 179 | . 15 24 25 20 95 Hits 479 | . 77 67 47 68 220 Melee 8 | . . . . . 8 Projectile 471 | . 77 67 47 68 212 AOE 2 | . . . . . 2 Critical Strikes 5 | . 1 1 . 1 2 Damage Taken 3711 | . 547 453 386 586 1739 Core 1174 | . 61 133 146 117 717 Absorbed by Shields . | . . . . . . Ignored by Resistances 1171 | . 174 146 126 178 547 Regen/Repaired (Parts) 168 | . 168 . . . . Core Remaining (%) 70 | 100 75 . 30 78 . Volleys Fired 220 | . 61 27 31 62 39 Largest 1 | . 1 1 1 1 1 Hottest 80 | . 30 65 65 63 80 Shots Fired 220 | . 61 27 31 62 39 Gun 150 | . 58 21 31 16 24 Cannon 61 | . . . . 46 15 Launcher 9 | . 3 6 . . . Special . | . . . . . . Kinetic 130 | . 58 6 . 48 18 Thermal 81 | . . 15 31 14 21 Explosive 9 | . 3 6 . . . Electromagnetic . | . . . . . . Robot Hit Streak 66 | . 18 11 66 23 42 Robot Miss Streak 6 | . 2 6 2 4 1 Penetration Max . | . . . . . . Secondary Targets . | . . . . . . Shots Hit Robots 199 | . 47 23 30 52 47 Core Hits 153 | . 29 44 50 15 15 Critical Kills . | . . . . . . Critical Parts Destroyed . | . . . . . . Critical Strikes 4 | . . . . 2 2 Blast 2 | . . . . 2 . Sever 2 | . . . . . 2 Melee Attacks 11 | . . . . 2 9 Impact 2 | . . . . 2 . Slashing 9 | . . . . . 9 Piercing . | . . . . . . Sneak Attacks . | . . . . . . Combat Hostiles . | . . . . . . Follow-up Attacks . | . . . . . . Damage Inflicted 3940 | . 686 593 526 1185 950 Guns 1848 | . 511 258 526 213 340 Cannons 1346 | . . . . 972 374 Explosions 509 | . 175 334 . . . Melee 234 | . . . . . 234 Ramming 3 | . . 1 . . 2 Kinetic 1912 | . 511 48 . 1018 335 Thermal 1282 | . . 210 526 167 379 Explosive 509 | . 175 334 . . . Electromagnetic . | . . . . . . Impact . | . . . . . . Slashing 234 | . . . . . 234 Piercing . | . . . . . . Highest Corruption 2 | . . . . . 2 Average Corruption 2 | . . . . . 2 Corruption Purged . | . . . . . . Corruption Blocked . | . . . . . . Overload Shots . | . . . . . . Overflow Damage 13 | . . . . 13 . Projectiles 13 | . . . . 13 . Explosions . | . . . . . . Melee . | . . . . . . Knockbacks 10 | . . . . 10 . Impact . | . . . . . . Kinetic 9 | . . . . 9 . Secondary 1 | . . . . 1 . Self-Inflicted Damage . | . . . . . . Shots . | . . . . . . Rammed 3 | . . 1 . . 2 Targets Rammed 3 | . . 1 . . 2 Kicked . | . . . . . . Crushed . | . . . . . . Highest Temperature 280 | . 14 156 175 280 91 Average Temperature 55 | . 7 68 62 53 42 Received Heat Transfer 1431 | . 180 75 204 270 702 Effects 1 | . . . . 1 . Interference 1 | . . . . 1 . Siege Activations . | . . . . . . Martial Activations . | . . . . . . Shielding Activations . | . . . . . . Robots Disrupted . | . . . . . . Combat Hostiles . | . . . . . . Robots Corrupted . | . . . . . . Combat Hostiles . | . . . . . . Parts Fried . | . . . . . . Impact Corruptions . | . . . . . . Robots Melted . | . . . . . . Combat Hostiles . | . . . . . . Parts Melted 2 | . . . 1 . 1 Heat Transferred 2113 | . . 275 705 358 775 Parts Sabotaged . | . . . . . . Parts Stolen . | . . . . . . Parts Stripped . | . . . . . . Power Chain Reactions . | . . . . . . Alert | -11 -10 -9 -9 -8 -7 ------- Run | Yrd Mat Mat Min Mat Fac Maximum Alert Level 1 | . 1 1 . . . Low Security (%) 94 | 100 91 74 100 100 100 Level 1 5 | . 8 25 . . . Level 2 . | . . . . . . Level 3 . | . . . . . . Level 4 . | . . . . . . Level 5 . | . . . . . . High Security . | . . . . . . Max Security . | . . . . . . Peak Influence 297 | . 223 297 184 139 50 Initial 94 | . . 53 94 50 40 Average 86 | . 116 121 112 56 16 Influence Increases 1443 | . 409 364 300 265 105 Destroy 0b10 Robot/C 1100 | . 320 260 260 180 80 Destroy 0b10 Robot/NC 35 | . 5 25 . 5 . Destroy Leader 184 | . 42 52 40 40 10 Successful Hack 15 | . 2 . . 13 . Disable Machine 18 | . 9 . . 9 . Destroy Structure 46 | . 16 27 . 3 . Lose Combat Pursuer 45 | . 15 . . 15 15 Influence Decreases 1443 | . 260 226 433 314 210 Entered New Map 458 | . . 96 193 104 65 Time Decay 810 | . 240 90 200 190 90 Lost Part 175 | . 20 40 40 20 55 Squads Dispatched 6 | . 2 . . 2 2 Investigation 4 | . 2 . . 1 1 Extermination 1 | . . . . . 1 Reinforcement 1 | . . . . 1 . Assault . | . . . . . . Garrison . | . . . . . . Intercept . | . . . . . . Searches Triggered . | . . . . . . Construction Impeded . | . . . . . . Haulers Reinforced . | . . . . . . Active Scanning Responses . | . . . . . . Cargo Convoy Interrupts . | . . . . . . Stealth | -11 -10 -9 -9 -8 -7 --------- Run | Yrd Mat Mat Min Mat Fac Distress Signals . | . . . . . . Communications Jammed . | . . . . . . Distress Signals . | . . . . . . Times Spotted 80 | . 23 14 17 15 11 Peak Tracking Total 9 | . 8 9 4 4 6 Tactical Retreats 3 | . 1 . . 1 1 Traps | -11 -10 -9 -9 -8 -7 ------- Run | Yrd Mat Mat Min Mat Fac Traps Triggered 3 | . 2 . . 1 . Indirectly . | . . . . . . Trap Hack Attempts . | . . . . . . Triggered . | . . . . . . Disarmed . | . . . . . . Reprogrammed . | . . . . . . Reused . | . . . . . . Traps Extracted . | . . . . . . Installed . | . . . . . . Triggered . | . . . . . . Machines | -11 -10 -9 -9 -8 -7 ---------- Run | Yrd Mat Mat Min Mat Fac Machines Disabled 2 | . 1 . . 1 . Max in Single Turn 1 | . 1 . . 1 . Machines Repaired . | . . . . . . Machines Dismantled . | . . . . . . Machines Sabotaged . | . . . . . . Overloaded Fab Kills . | . . . . . . Hacking | -11 -10 -9 -9 -8 -7 --------- Run | Yrd Mat Mat Min Mat Fac Machines Accessed 9 | . 3 . 2 3 1 Terminals 7 | . 2 . 2 3 . Fabricators . | . . . . . . Repair Stations 1 | . 1 . . . . Recycling Units 1 | . . . . . 1 Scanalyzers . | . . . . . . Garrison Access . | . . . . . . Total Hacks 26 | . 9 . 5 8 4 Successful 21 | . 9 . 3 7 2 Failed 5 | . . . 2 1 2 Catastrophic . | . . . . . . Database Lockouts . | . . . . . . Manual . | . . . . . . Terminals 16 | . 3 . 5 8 . Fabricators . | . . . . . . Repair Stations 6 | . 6 . . . . Recycling Units 4 | . . . . . 4 Scanalyzers . | . . . . . . Garrison Access . | . . . . . . Terminal Hacks 13 | . 3 . 3 7 . Record 1 | . . . 1 . . Prototype ID Bank 1 | . 1 . . . . Level Access Points 1 | . . . . 1 . Alert Level 2 | . 1 . . 1 . Dispatch Records 2 | . . . 1 1 . Surveillance Status 1 | . 1 . . . . Patrol Status 1 | . . . . 1 . Investigation Status 1 | . . . . 1 . Hauler Manifests 1 | . . . . 1 . Zone Layout 2 | . . . 1 1 . Fabricator Hacks . | . . . . . . Repair Station Hacks 6 | . 6 . . . . Scan Component 3 | . 3 . . . . Repair 3 | . 3 . . . . Recycling Unit Hacks 2 | . . . . . 2 Report Inventory 1 | . . . . . 1 Retrieve Matter 1 | . . . . . 1 Scanalyzer . | . . . . . . Garrison Access Hacks . | . . . . . . Unauthorized Hacks . | . . . . . . Terminals . | . . . . . . Fabricators . | . . . . . . Repair Stations . | . . . . . . Recycling Units . | . . . . . . Scanalyzers . | . . . . . . Garrison Access . | . . . . . . Data Cores Recovered 1 | . . . . 1 . Used . | . . . . . . Hacking Detections 5 | . . . 1 3 1 Full Trace Events 1 | . . . . . 1 Feedback Events . | . . . . . . Feedback Blocked . | . . . . . . Robot Schematics Acquired . | . . . . . . Robots Built . | . . . . . . Authchips . | . . . . . . Time . | . . . . . . Total Robot Build Rating . | . . . . . . Part Schematics Acquired . | . . . . . . Parts Built . | . . . . . . Authchips . | . . . . . . Time . | . . . . . . Total Part Build Rating . | . . . . . . Part Studies Acquired . | . . . . . . Parts Repaired 3 | . 3 . . . . Time 90 | . 90 . . . . Parts Recycled . | . . . . . . Recycled Matter . | . . . . . . Retrieved Matter . | . . . . . . Retrieved Components . | . . . . . . Parts Scanalyzed . | . . . . . . Part Schematics Acquired . | . . . . . . Parts Damaged . | . . . . . . Bothacking | -11 -10 -9 -9 -8 -7 ------------ Run | Yrd Mat Mat Min Mat Fac Used RIF Installer . | . . . . . . Robots Hacked . | . . . . . . Non-combat . | . . . . . . Combat . | . . . . . . Robot Hacks Applied . | . . . . . . Relay Couplers Released . | . . . . . . Fabnet Peak Effective % . | . . . . . . Robots Rewired . | . . . . . . Allies Hacked . | . . . . . . Hacks Repelled . | . . . . . . Allies | -11 -10 -9 -9 -8 -7 -------- Run | Yrd Mat Mat Min Mat Fac Total Allies . | . . . . . . Largest Group . | . . . . . . Highest-Rated Group . | . . . . . . Highest-Rated Ally . | . . . . . . Total Orders . | . . . . . . Ally Attacks . | . . . . . . Total Damage . | . . . . . . Kills . | . . . . . . Allies Corrupted . | . . . . . . Allies Melted . | . . . . . . Intel | -11 -10 -9 -9 -8 -7 ------- Run | Yrd Mat Mat Min Mat Fac Active Infowar (turns) 1346 | . 50 197 407 431 261 Optics 1346 | . 50 197 407 431 261 Robot Analysis Total . | . . . . . . Derelict Logs Recovered 1 | . . . 1 . . Drone Launches . | . . . . . . Drone Recoveries . | . . . . . . Exploration | -11 -10 -9 -9 -8 -7 ------------- Run | Yrd Mat Mat Min Mat Fac Turns Passed 1904 | 40 568 197 407 431 261 Spaces Moved 861 | 33 224 109 203 213 79 Core 10 | 7 . . . . 3 Treads . | . . . . . . Legs 3 | . . . . . 3 Wheels 848 | 26 224 109 203 213 73 Hover . | . . . . . . Flight . | . . . . . . Fastest Speed 50 | 50 90 105 105 120 120 Average Speed 115 | 81 106 116 113 120 152 Slowest Speed 900 | 90 120 120 145 120 900 Overloaded Moves . | . . . . . . Propulsion Burnouts . | . . . . . . Robots Hopped . | . . . . . . Potential Cave-ins . | . . . . . . Cave-ins Triggered . | . . . . . . Exploration Rate (%) 23 | 3 39 18 57 19 3 Regions Visited 5 Branch Regions 1 Pre-discovered Areas . | . . . . . . Known Exits Taken 1 | . . . . 1 . Unknown Exits Taken 4 | 1 1 1 1 . . Scrap Searched . | . . . . . . Spaces Dug 2 | . . . . 2 . Terrain Destroyed 53 | . 20 30 . 3 . Melee 2 | . . . . 2 . Projectile 1 | . . . . 1 . AOE 50 | . 20 30 . . . Terrain Rammed . | . . . . . . Walls Destroyed . | . . . . . . Machines Disabled . | . . . . . . Actions | -11 -10 -9 -9 -8 -7 --------- Run | Yrd Mat Mat Min Mat Fac Total 1519 | 45 494 153 350 321 156 Wait 326 | 5 184 8 106 22 1 Move 856 | 32 223 108 202 212 79 Hop . | . . . . . . Pick Up 44 | 4 12 4 8 10 6 Fast Attach 8 | 1 6 . . . 1 Attach 33 | 3 4 4 3 7 12 Detach 1 | . . . . 1 . Swap 12 | . 2 . . 5 5 Drop 5 | . 2 1 . . 2 Fire 220 | . 61 27 31 62 39 Melee 11 | . . . . 2 9 Ram 3 | . . 1 . . 2 Kick . | . . . . . . Crush . | . . . . . . Escape Stasis . | . . . . . . Rewire . | . . . . . . Trap . | . . . . . . Miscellaneous . | . . . . . . Route ------- -11/Scrapyard -10/Materials -9/Materials -9/Mines -8/Materials (discovered 4 exits: *Fac x3 / Sto) -7/Factory History --------- Turn | Location | Event 13 | -11/Scrapyard | Discovered new exit (range 16) 41 | -11/Scrapyard | Entered Materials 315 | -10/Materials | Build established: Mutant 351 | -10/Materials | Repaired Arm. Wheel 385 | -10/Materials | Repaired Arm. Wheel 412 | -10/Materials | Repaired Grenade Launcher 599 | -10/Materials | Discovered new exit (range 9) 609 | -10/Materials | Entered another Materials area 609 | -9/Materials | Evolved 2 slots: Utility x2 786 | -9/Materials | Discovered new exit (range 18) 796 | -9/Materials | Lost 4 parts (1p1n2w) 800 | -9/Materials | Destroyed 9 combat bots 806 | -9/Materials | Entered Mines 1014 | -9/Mines | Core integrity fell below 50% 1180 | -9/Mines | Discovered new exit (range 13) 1184 | -9/Mines | Lost 3 parts (1p1n1w) 1213 | -9/Mines | Entered Materials 1213 | -8/Materials | Evolved 2 slots: Power x1, Utility x1 1214 | -8/Materials | Identified exit to Storage 1409 | -8/Materials | Identified exit to Factory 1644 | -8/Materials | Entered Factory 1644 | -7/Factory | Evolved 2 slots: Power x1, Utility x1 1815 | -7/Factory | Lost 4 parts (2p2n) 1848 | -7/Factory | Core integrity fell below 50% 1882 | -7/Factory | Core integrity fell below 20% 1905 | -7/Factory | Destroyed by B-48 Gladiator with Mace Last Messages --------------- K-01 Serf collects debris. Minigun destroyed. K-01 Serf collects debris. Sml. Laser destroyed. Slammed into Y-54 Guardian. Critical hit (Burn: +37). K-01 Serf collects debris. ALERT: Potential suspicious activity detected, Programmers report to Factory Zone 6A. Slammed into Y-54 Guardian. K-01 Serf collects debris. Cryofiber Web destroyed. K-01 Serf collects debris. K-01 Serf suffers critical hit (Burn). K-01 Serf destroyed. M-13 Machinist destroyed. Targeting Computer destroyed. Airjet destroyed. System corrupted by crushing effect (+2). Knocked back. Map ----- +----------------------------------------------------+ | ?????????????????????????????????????? | | ?????????????????????????????????????? | | ?????????????????????????????????????? | | ?????????????????????????????????????? | | ?????????????????????????????????????? | | ?????????????????????????????????????? | | ?????????????? ??????????????????????? | | ?????????????? ??????????????????????? | | ?????????????? ??????????????????????? | | ?????????????# ??????????????????????? | | ?????????????#%??????????????????????? | | ????" ??"????# #?????????????????????? | | ???"" """????# #?????????????????????? | | ? ?"" "" ???# #?????????????????????? | | ? "" "" ??## #?????????????????????? | | ? ###; ######????????????????? | | ??? ; #????????????????? | | ????#;;;; r ;;##???????????????? | | ???## +???????????????? | | ???#; #???????????????? | | ???#; ######## ?????? | | ???#; ^^^ ???????? | | ???#; %g #????????????? | | ???#; Yg #????????????? | | ????# b%% t#????????????? | | ????#;;;; @ = "#### #????????????? | | ????### # # #""F"""#?????????????????? | | ??????????#=# """""#?????????????????? | | ??????????# ########?????????????????? | | ??????????# #???#######??????????????? | | ??????????# #???# #??????????????? | | #########?# #???# #??????????????? | | # #?# #???# #??????????????? | | # """" #?# #???# """ #??????????????? | | # """" ### ##### "Y #??????????????? | | # """" # + """ #######????????? | | # """" # # # #????????? | | # # ####### ###+###??? | | # # | | # # | | # + | | #[[[ # | | #[[ # = | | #[[ ##### = ####+##### | | # #???# =[ #?????????? | | # ! = #???# +?????????? | | # +?? ########?????????? | | # #?####### #????????????????? | | # #???????##+##????????????????? | | #########????????????????????????????? | +----------------------------------------------------+ Best States ------------- Heat Dissipation 34 Energy Generation 23 Energy Capacity 340 Matter Stores 300 Matter Capacity 300 Sight Range 18 Terrain Scan Density 10 Base Temperature (-) 100 Resistance: KI 20 Resistance: TH 20 Resistance: EX 20 Resistance: EM 20 Resistance: I 20 Resistance: S 20 Resistance: P 20 Evasion (%) 42 Targeting Accuracy 13 Offensive Hacking 10 Item Schematics ----------------- None Robot Schematics ------------------ None Fabricated ------------ Nothing Repaired ---------- Arm. Wheel | 23% | -10/Materials Arm. Wheel | 27% | -10/Materials Grenade Launcher | 70% | -10/Materials Studied --------- None Alien Tech Used ----------------- None Achievements -------------- Storm Trooper Challenges ------------ None Game ------ Seed LauncherDirtyMount Manual? 0 Play Time 00:24:08 Cumulative 8.9 hours Start 2025.11.15 @ 18:27:59 End 2025.11.15 @ 18:52:05 Sessions 1 Manual Loads 0 Difficulty Adventurer Special Mode None Game No. 16 Rogue 0 Adventurer 16 Explorer 0 Win Type - Total 0 Types 0/0/0/0/0/0/0/0/0/0 Lore% 8 Gallery% 14 Achievement% 11 Wizard Run 0 Options --------- Layout 1 ASCII 0 Keyboard 0 Movement Mouse Keybinds 0 Fullscreen 1 Font 24/X11 Map View 50x35 Zoom Use 0% Tactical HUD 0 Map Filters NONE Filters NONE Steam 1 RUN: eb388aa8-98c5-43f9-a583-687e82a4e4a9